bitfinex/quotes_SOLUSD_20260201
["timestamp","ask_amount","ask_price","bid_price","bid_amount"]
[1769963246977,14.63930959,102.7,102.63,4.2475425]
[1769963247180,24.37640793,102.7,102.63,4.2475425]
[1769963247372,14.63930959,102.71,102.64,4.2475425]
[1769963247570,14.63930959,102.71,102.65,4.2475425]
[1769963247776,14.63930959,102.73,102.67,4.2475425]
[1769963247992,14.63930959,102.75,102.69,4.2475425]
[1769963248669,13.88687718,102.77,102.69,4.2475425]
[1769963248886,14.63930959,102.75,102.69,4.2475425]
[1769963249497,4.15615645,102.76,102.69,4.2475425]
[1769963249498,4.15615645,102.76,102.7,4.2475425]
[1769963249698,14.63930959,102.75,102.7,13.98392825]
[1769963249997,18.79546604,102.75,102.7,9.73638575]
[1769963250174,14.63930959,102.71,102.66,13.98757862]
[1769963250380,14.63930959,102.71,102.66,4.2475425]
[1769963250581,18.79546604,102.72,102.66,4.2475425]
[1769963251096,18.79546604,102.7,102.66,9.74077645]
[1769963251607,14.63930959,102.7,102.62,14.63930959]
[1769963251809,14.63930959,102.76,102.71,4.2475425]
[1769963252000,18.79546604,102.76,102.71,4.2475425]
[1769963252387,18.79546604,102.76,102.7,34.07968187]
[1769963252696,18.79546604,102.78,102.71,4.2475425]
[1769963252901,18.79546604,102.78,102.72,4.2475425]
[1769963253105,28.52511284,102.78,102.72,4.2475425]
[1769963253482,18.79546604,102.76,102.7,13.98447851]
[1769963253807,4.15615645,102.76,102.7,9.73693601]
[1769963253994,18.79546604,102.75,102.69,13.98486132]
[1769963254309,18.79546604,102.75,102.7,9.73668305]
[1769963255408,13.88946382,102.74,102.69,9.73778328]
[1769963255581,4.15615645,102.72,102.65,4.2475425]
[1769963255782,18.79546604,102.71,102.66,9.74032677]
[1769963255987,14.63930959,102.69,102.64,9.74224629]
[1769963256285,4.15615645,102.67,102.6,4.2475425]
[1769963256502,14.63930959,102.66,102.6,4.2475425]
[1769963256698,14.63930959,102.67,102.6,4.2475425]
[1769963256885,18.79546604,102.68,102.61,4.2475425]
[1769963257293,28.53494188,102.68,102.62,4.2475425]
[1769963257507,28.53494188,102.68,102.62,38.3539545]
[1769963257880,4.26927095,102.74,102.65,4.0823285]
[1769963258087,14.63930959,102.72,102.65,4.0823285]
[1769963258608,14.63930959,102.7,102.65,4.0823285]
[1769963259407,24.37662212,102.7,102.66,9.74089226]
[1769963259587,24.37662212,102.7,102.65,13.82396865]
[1769963259909,14.63930959,102.68,102.64,9.74259076]
[1769963260109,9.73510841,102.73,102.67,4.0823285]
[1769963260415,14.63930959,102.73,102.67,4.0823285]
[1769963261005,4.26927095,102.72,102.67,4.0823285]
[1769963261301,18.90858054,102.71,102.65,13.82387771]
[1769963261503,14.63930959,102.69,102.64,9.74245717]
[1769963261686,14.0057271,102.71,102.65,9.74161921]
[1769963261882,14.63930959,102.71,102.66,4.0823285]
[1769963262191,28.64364418,102.73,102.66,4.0823285]
[1769963262387,18.90858054,102.73,102.67,4.0823285]
[1769963262607,28.64299924,102.73,102.67,4.0823285]
[1769963263308,9.73361721,102.74,102.69,4.0823285]
[1769963263605,9.73159997,102.76,102.69,4.0823285]
[1769963263906,28.40758001,102.77,102.69,4.0823285]
[1769963263907,4.08071664,102.77,102.69,4.0823285]
[1769963264106,4.08071664,102.77,102.71,4.0823285]
[1769963264286,18.90858054,102.76,102.69,4.0823285]
[1769963265412,18.90858054,102.76,102.7,38.39811116]
[1769963266495,28.64005735,102.76,102.7,38.39811116]
[1769963267019,14.63930959,102.72,102.69,9.73770779]
[1769963268009,14.63930959,102.72,102.68,9.73887984]
[1769963268214,24.37474024,102.72,102.68,9.73887984]
[1769963268410,9.73543065,102.72,102.66,4.31826696]
[1769963268618,14.63930959,102.75,102.69,4.31826696]
[1769963268807,14.63930959,102.73,102.69,4.31826696]
[1769963269004,4.44745377,102.72,102.67,4.31826696]
[1769963269209,14.63930959,102.71,102.67,14.05779329]
[1769963269403,14.18519905,102.7,102.65,14.05960449]
[1769963269711,14.18519905,102.7,102.6,4.31826696]
[1769963269712,14.63930959,102.67,102.6,4.31826696]
[1769963269901,4.40297923,102.7,102.6,4.31826696]
[1769963269902,14.63930959,102.68,102.6,4.31826696]
[1769963270495,14.63930959,102.68,102.63,9.74293946]
[1769963270705,14.63930959,102.68,102.65,9.74180836]
[1769963271513,14.63930959,102.68,102.64,4.31826696]
[1769963271717,28.78014539,102.7,102.64,4.31826696]
[1769963271903,53.12289125,102.7,102.64,4.31826696]
[1769963272507,48.71991202,102.7,102.64,4.31826696]
[1769963272704,48.71991202,102.7,102.62,9.74468914]
[1769963272705,14.63930959,102.68,102.62,14.0629561]
[1769963272903,14.63930959,102.68,102.63,4.31826696]
[1769963273618,14.63930959,102.68,102.6,14.63930959]
[1769963273619,14.63930959,102.68,102.65,4.31826696]
[1769963274321,19.04228882,102.66,102.59,4.31826696]
[1769963274517,19.04228882,102.66,102.6,4.31826696]
[1769963274832,14.63930959,102.64,102.6,14.06433718]
[1769963275125,34.0866529,102.68,102.59,38.43425135]
[1769963275126,4.40297923,102.67,102.59,38.43425135]
[1769963275293,14.63930959,102.63,102.59,34.11598439]
[1769963275499,14.63930959,102.65,102.6,4.31826696]
[1769963275797,24.38178678,102.65,102.6,14.06424069]
[1769963275996,14.63930959,102.65,102.6,38.43071242]
[1769963276221,24.38129269,102.65,102.6,14.06424069]
[1769963276517,24.38139963,102.65,102.6,38.43071242]
[1769963277114,14.63930959,102.63,102.6,14.06424069]
[1769963277310,14.63930959,102.63,102.59,9.74681454]
[1769963277839,28.78669505,102.63,102.58,14.06637534]
[1769963278021,14.63930959,102.63,102.58,38.4375978]
[1769963278318,9.74386262,102.63,102.58,38.4375978]
[1769963278615,14.63930959,102.66,102.59,4.31826696]
[1769963279129,24.37879228,102.68,102.61,4.31826696]
[1769963279507,14.14143916,102.69,102.61,4.31826696]
[1769963279706,28.78074875,102.69,102.63,4.31826696]
[1769963280204,14.63930959,102.69,102.63,4.31826696]
[1769963280423,14.63930959,102.71,102.65,4.31826696]
[1769963281096,14.63930959,102.69,102.63,31.37826696]
[1769963281302,14.63930959,102.69,102.64,4.31826696]
[1769963281502,19.04228882,102.71,102.64,4.31826696]
[1769963281715,28.78223232,102.67,102.63,9.74355678]
[1769963281919,28.78223232,102.67,102.62,9.74429105]
[1769963282220,14.63930959,102.67,102.63,9.74341291]
[1769963282796,19.04228882,102.65,102.59,24.36796691]
[1769963283017,14.01466527,102.68,102.58,31.37826696]
[1769963283018,14.63930959,102.61,102.58,9.74794763]
[1769963283195,14.63930959,102.61,102.55,9.75091036]
[1769963283196,14.63930959,102.59,102.55,9.75091036]
[1769963283402,14.63930959,102.59,102.54,4.31826696]
[1769963283614,14.63930959,102.57,102.54,14.06997623]
[1769963283821,14.63930959,102.55,102.53,0.2]
[1769963284321,14.63930959,102.55,102.51,9.75511499]
[1769963284322,18.95466952,102.55,102.51,9.75511499]
[1769963284503,18.95466952,102.55,102.52,9.75399788]
[1769963284703,14.63930959,102.55,102.53,9.75314344]
[1769963285003,14.63930959,102.55,102.5,0.2]
[1769963285199,14.63930959,102.51,102.5,0.2]
[1769963285418,14.63930959,102.51,102.5,1e-08]
[1769963285902,28.66666175,102.51,102.46,9.95978179]
[1769963286127,14.63930959,102.49,102.46,0.2]
[1769963286719,14.63930959,102.53,102.47,4.31826696]
[1769963287221,14.63930959,102.51,102.46,0.2]
[1769963287415,14.63930959,102.49,102.46,0.2]
[1769963287618,4.25017639,102.5,102.46,0.2]
[1769963287921,14.63930959,102.54,102.47,4.12874167]
[1769963288318,14.63930959,102.53,102.47,4.12874167]
[1769963289322,4.25017639,102.55,102.47,4.12874167]
[1769963289628,14.63930959,102.53,102.48,4.12874167]
[1769963289831,14.63930959,102.55,102.5,4.12874167]
[1769963290209,13.99961579,102.57,102.5,4.12874167]
[1769963290523,18.88948598,102.58,102.5,4.12874167]
[1769963290722,14.63930959,102.56,102.5,4.12874167]
[1769963291915,14.63930959,102.56,102.51,9.75514583]
[1769963292116,18.88948598,102.56,102.51,9.75514583]
[1769963292319,14.63930959,102.56,102.52,4.12874167]
[1769963292525,14.66779618,102.58,102.52,4.12874167]
[1769963293540,13.99771513,102.59,102.51,48.8108066]
[1769963293541,14.66779618,102.56,102.51,9.75514583]
[1769963294027,14.66779618,102.56,102.51,4.12874167]
[1769963294536,4.25017639,102.57,102.51,4.12874167]
[1769963294737,13.9998903,102.57,102.51,4.12874167]
[1769963295038,9.74971391,102.57,102.51,4.12874167]
[1769963295934,18.91797257,102.59,102.53,4.12874167]
[1769963296135,18.91797257,102.57,102.52,34.13968005]
[1769963296639,18.91797257,102.56,102.51,9.75485001]
[1769963296810,18.91797257,102.54,102.49,9.75668044]
[1769963297010,18.91797257,102.54,102.5,9.75609227]
[1769963297230,18.91797257,102.54,102.49,9.7566544]
[1769963297730,28.6721455,102.53,102.48,13.88645988]
[1769963298035,28.6721455,102.53,102.48,9.75771821]
[1769963298237,24.42038936,102.54,102.48,13.88645988]
[1769963298632,9.75159974,102.55,102.5,4.12874167]
[1769963299222,4.25017639,102.57,102.51,4.12874167]
[1769963299223,18.91797257,102.57,102.51,4.12874167]
[1769963299429,18.91797257,102.54,102.48,9.75771821]
[1769963299939,9.75324295,102.53,102.48,4.12874167]
[1769963300351,4.25017639,102.52,102.47,9.75895384]
[1769963300635,14.00289319,102.54,102.47,52.95287629]
[1769963300821,4.25017639,102.54,102.48,18.79653785]
[1769963301027,28.67036471,102.54,102.48,4.12874167]
[1769963301738,9.7541943,102.52,102.47,9.75895384]
[1769963302036,4.25017639,102.52,102.46,53.15580043]
[1769963302235,4.25017639,102.52,102.47,4.12874167]
[1769963302620,18.91797257,102.55,102.49,4.12874167]
[1769963302829,4.25017639,102.55,102.5,4.12874167]
[1769963303032,4.25017639,102.56,102.5,18.79653785]
[1769963303231,4.25017639,102.53,102.46,53.15580043]
[1769963303523,4.25017639,102.51,102.46,0.2]
[1769963303822,18.91797257,102.53,102.47,4.12874167]
[1769963304324,4.25017639,102.51,102.46,9.95978247]
[1769963304516,4.25017639,102.51,102.46,38.4882899]
[1769963305132,14.0039212,102.53,102.47,4.12874167]
[1769963305538,13.40275302,102.54,102.49,4.12874167]
[1769963305723,13.40275302,102.54,102.47,13.2813183]
[1769963305924,14.00270182,102.54,102.48,47.43432376]
[1769963306326,14.00270182,102.54,102.48,38.28174713]
[1769963306623,47.53600792,102.54,102.48,38.28174713]
[1769963306944,23.15527845,102.54,102.49,4.12874167]
[1769963307138,4.25017639,102.53,102.47,13.88728312]
[1769963307339,13.40275302,102.53,102.47,13.88728312]
[1769963307533,4.25017639,102.53,102.47,13.88728312]
[1769963307940,9.7541943,102.52,102.47,38.28466772]
[1769963308242,4.25017639,102.5,102.46,0.2]
[1769963308946,4.20767462,102.46,102.4,13.89395826]
[1769963309119,38.93613273,102.51,102.41,4.12874167]
[1769963309120,13.36025125,102.48,102.41,4.12874167]
[1769963309319,4.20767462,102.48,102.42,4.12874167]
[1769963309749,13.36025125,102.48,102.42,4.12874167]
[1769963310124,23.11920509,102.47,102.42,4.12874167]
[1769963310338,4.20767462,102.46,102.41,9.76414342]
[1769963310639,4.20767462,102.45,102.41,9.76464888]
[1769963310844,4.20767462,102.45,102.4,13.89389236]
[1769963311242,4.20767462,102.44,102.39,2.19405208]
[1769963311457,4.20767462,102.44,102.4,9.76508261]
[1769963311752,9.75895384,102.47,102.42,13.89238789]
[1769963312053,18.91153047,102.47,102.42,13.89238789]
[1769963312642,23.11920509,102.47,102.42,13.89238789]
[1769963314953,9.15257663,102.46,102.42,13.89238789]
[1769963315464,23.1183803,102.48,102.43,4.12874167]
[1769963315748,9.15257663,102.47,102.43,4.12874167]
[1769963315952,9.15257663,102.46,102.41,13.89318309]
[1769963316254,9.15257663,102.46,102.41,4.12874167]
[1769963316428,13.36025125,102.47,102.41,4.12874167]
[1769963316748,13.36025125,102.47,102.42,13.89243153]
[1769963317133,9.75812905,102.48,102.43,4.12874167]
[1769963317449,9.15257663,102.5,102.44,4.2079108]
[1769963317646,9.15257663,102.49,102.44,4.2079108]
[1769963318047,18.90912316,102.5,102.44,4.2079108]
[1769963318444,9.15257663,102.49,102.44,4.2079108]
[1769963318655,9.15257663,102.48,102.44,4.2079108]
[1769963319255,9.15257663,102.48,102.43,4.2079108]
[1769963319637,23.11775069,102.49,102.43,4.2079108]
[1769963319833,4.20767462,102.49,102.43,9.15257663]
[1769963320051,9.15257663,102.5,102.44,4.2079108]
[1769963320248,9.15257663,102.52,102.46,4.2079108]
[1769963320439,13.36025125,102.53,102.47,4.2079108]
[1769963320755,13.36025125,102.52,102.47,4.2079108]
[1769963321056,23.11302709,102.54,102.48,4.2079108]
[1769963321252,23.11302709,102.54,102.49,9.75704946]
[1769963321646,18.9034329,102.56,102.5,4.2079108]
[1769963321855,9.15257663,102.54,102.5,4.2079108]
[1769963322046,9.15257663,102.55,102.5,4.2079108]
[1769963323148,13.36025125,102.56,102.51,9.75514583]
[1769963323349,9.15257663,102.55,102.51,9.75514583]
[1769963323940,13.36025125,102.58,102.52,4.2079108]
[1769963324135,9.15257663,102.57,102.52,4.2079108]
[1769963324843,18.90017276,102.59,102.53,4.35135982]
[1769963325240,18.90017276,102.59,102.54,9.75229178]
[1769963325543,9.15257663,102.58,102.54,14.1036516]
[1769963325952,22.97931974,102.59,102.54,14.1036516]
[1769963326655,9.15257663,102.56,102.52,4.35135982]
[1769963327158,9.15257663,102.56,102.52,14.10513577]
[1769963328959,9.7513408,102.55,102.52,4.35135982]
[1769963329148,9.32189574,102.54,102.49,36.85658817]
[1769963329349,9.32189574,102.54,102.49,31.45135982]
[1769963329554,9.15257663,102.52,102.47,4.35135982]
[1769963330467,9.15257663,102.51,102.47,9.75847031]
[1769963330664,34.12969282,102.55,102.48,4.35135982]
[1769963330851,13.23172361,102.54,102.49,4.35135982]
[1769963331167,13.23172361,102.53,102.47,38.50721473]
[1769963331459,9.15257663,102.52,102.47,38.50721473]
[1769963331642,13.23172361,102.52,102.47,38.50721473]
[1769963331841,4.07914698,102.52,102.47,38.50721473]
[1769963332060,13.23172361,102.53,102.48,4.35135982]
[1769963332262,4.07914698,102.53,102.48,4.35135982]
[1769963332467,13.23172361,102.53,102.48,4.35135982]
[1769963332845,4.07914698,102.52,102.47,34.15585491]
[1769963333059,9.15257663,102.51,102.47,34.15585491]
[1769963333365,4.07914698,102.51,102.47,34.15585491]
[1769963333561,13.23172361,102.51,102.47,9.75847031]
[1769963333764,13.23172361,102.49,102.45,27.1]
[1769963333978,13.23172361,102.48,102.44,9.76126548]
[1769963334272,13.23172361,102.47,102.44,9.76126548]
[1769963334469,4.07914698,102.48,102.42,13.50393645]
[1769963334653,13.23172361,102.47,102.42,4.35135982]
[1769963334977,4.07914698,102.47,102.43,9.76276481]
[1769963335160,4.07914698,102.47,102.43,34.16967684]
[1769963335464,4.07914698,102.47,102.43,9.76276481]
[1769963335872,4.07914698,102.48,102.44,9.15257663]
[1769963336178,4.07914698,102.48,102.43,23.26670126]
[1769963336359,4.07914698,102.47,102.43,9.76276481]
[1769963336557,4.07914698,102.47,102.43,18.91534144]
[1769963337249,4.07914698,102.47,102.43,9.76276481]
[1769963337876,4.07914698,102.46,102.43,9.76276481]
[1769963338457,4.07914698,102.46,102.41,9.76422708]
[1769963338458,4.07914698,102.45,102.41,9.76422708]
[1769963338966,18.91159502,102.47,102.42,4.35135982]
[1769963339150,4.07914698,102.48,102.44,9.15257663]
[1769963339351,13.83722787,102.48,102.43,47.67343377]
[1769963339576,13.83722787,102.48,102.39,29.29405208]
[1769963339577,13.23172361,102.45,102.39,33.6454119]
[1769963339869,4.07914698,102.43,102.39,11.34662871]
[1769963340080,4.07914698,102.43,102.39,11.96020184]
[1769963340292,4.07914698,102.43,102.39,2.19405208]
[1769963340567,4.07914698,102.45,102.4,13.50393645]
[1769963340747,4.07914698,102.45,102.41,9.15257663]
[1769963340951,4.07914698,102.45,102.4,13.50393645]
[1769963341370,13.23172361,102.45,102.4,13.50393645]
[1769963341570,4.07914698,102.45,102.41,9.15257663]
[1769963341948,4.07914698,102.47,102.43,9.15257663]
[1769963342155,13.83621219,102.49,102.44,9.15257663]
[1769963342361,13.23172361,102.47,102.42,9.15257663]
[1769963342564,4.07914698,102.47,102.43,9.15257663]
[1769963342871,4.07914698,102.47,102.42,13.50393645]
[1769963343171,4.07914698,102.47,102.43,9.15257663]
[1769963343469,4.07914698,102.49,102.44,9.15257663]
[1769963343670,24.38724192,102.52,102.47,9.15257663]
[1769963343671,4.07914698,102.52,102.47,9.15257663]
[1769963343973,4.07914698,102.51,102.47,9.15257663]
[1769963344281,13.23172361,102.48,102.43,9.15257663]
[1769963344465,4.07914698,102.46,102.42,9.76367755]
[1769963344659,5.36086188,102.49,102.4,55.86472113]
[1769963344660,4.07914698,102.44,102.4,24.41336131]
[1769963344866,4.07914698,102.44,102.41,33.56358848]
[1769963345060,4.07914698,102.44,102.42,9.76331699]
[1769963345585,4.07914698,102.44,102.41,18.91694458]
[1769963345778,4.07914698,102.45,102.41,18.91694458]
[1769963346080,13.23172361,102.45,102.41,9.76436795]
[1769963346264,4.07914698,102.44,102.4,9.15257663]
[1769963346582,4.07914698,102.43,102.41,9.76464762]
[1769963346775,4.07914698,102.45,102.41,18.91722425]
[1769963346975,4.07914698,102.45,102.41,43.32890279]
[1769963347177,4.07914698,102.45,102.41,18.91722425]
[1769963347559,4.07914698,102.45,102.41,9.76464762]
[1769963348676,4.07777334,102.47,102.43,9.15257663]
[1769963348980,4.07777334,102.5,102.46,9.15257663]
[1769963349177,4.07777334,102.52,102.47,9.15257663]
[1769963349372,4.07777334,102.52,102.48,9.15257663]
[1769963349561,4.07777334,102.52,102.48,9.757686]
[1769963349884,4.07777334,102.52,102.48,43.30526653]
[1769963350465,4.07777334,102.5,102.46,9.15257663]
[1769963350679,4.07777334,102.5,102.47,18.91075185]
[1769963350979,4.07777334,102.5,102.48,9.75776197]
[1769963351160,4.07777334,102.5,102.46,18.91174227]
[1769963352366,4.07777334,102.5,102.46,18.91306714]
[1769963352574,13.23167484,102.48,102.43,38.04087535]
[1769963352965,13.23167484,102.48,102.43,14.2438307]
[1769963353164,4.07777334,102.46,102.42,9.76355964]
[1769963353365,13.23167484,102.46,102.42,9.76355964]
[1769963353768,4.07777334,102.47,102.43,9.76243978]
[1769963354071,4.07777334,102.46,102.43,9.76243978]
[1769963354272,13.23167484,102.46,102.42,34.17191348]
[1769963354467,13.23167484,102.46,102.42,9.76322367]
[1769963355407,9.75908277,102.47,102.39,31.0921386]
[1769963355408,4.07777334,102.43,102.39,31.0921386]
[1769963355696,13.23167484,102.43,102.39,11.96042063]
[1769963355868,22.99454032,102.43,102.39,11.96042063]
[1769963356270,4.07777334,102.39,102.33,4.48190185]
[1769963356463,5.36086188,102.41,102.35,9.76987366]
[1769963356464,13.23167484,102.38,102.35,9.76987366]
[1769963356683,4.07777334,102.36,102.32,0.1]
[1769963356887,13.23167484,102.35,102.32,0.1]
[1769963357082,9.1539015,102.36,102.32,0.1]
[1769963357308,13.23167484,102.37,102.32,9.2539015]
[1769963357620,4.07777334,102.38,102.33,13.63580335]
[1769963357795,4.07777334,102.38,102.34,9.1539015]
[1769963358198,4.07777334,102.39,102.35,14.25229755]
[1769963358496,13.23167484,102.38,102.34,9.7709712]
[1769963358899,4.07777334,102.36,102.33,9.77189067]
[1769963359403,13.23167484,102.36,102.32,9.87271046]
[1769963359585,13.23167484,102.36,102.33,9.77227912]
[1769963359785,4.07777334,102.36,102.33,9.77227912]
[1769963359987,13.23167484,102.38,102.34,9.77097398]
[1769963360186,13.23167484,102.4,102.35,23.40582484]
[1769963360388,4.07777334,102.39,102.35,18.92392299]
[1769963361092,4.07777334,102.39,102.35,47.83181409]
[1769963361611,4.07777334,102.38,102.34,9.77098481]
[1769963361805,13.23167484,102.38,102.33,4.48190185]
[1769963362009,13.23167484,102.38,102.34,9.77118014]
[1769963362310,13.23167484,102.37,102.34,9.77098775]
[1769963362488,13.23167484,102.37,102.33,9.7722154]
[1769963362689,4.07777334,102.37,102.34,9.77134618]
[1769963363305,13.23167484,102.39,102.34,18.92524768]
[1769963363497,13.23167484,102.38,102.34,9.77134618]
[1769963363697,13.23167484,102.38,102.33,14.25361113]
[1769963363922,13.23167484,102.37,102.32,9.87280392]
[1769963364320,9.76920496,102.37,102.33,4.48190185]
[1769963364617,4.07777334,102.37,102.32,43.45985631]
[1769963364841,22.99684345,102.41,102.35,13.63580335]
[1769963365010,4.07777334,102.4,102.35,13.63580335]
[1769963365316,31.19777334,102.42,102.37,13.63580335]
[1769963365817,31.19777334,102.42,102.38,9.1539015]
[1769963366332,22.99357709,102.44,102.39,4.48190185]
[1769963366617,22.99357709,102.44,102.39,14.24832118]
[1769963366814,13.23167484,102.44,102.39,23.40222268]
[1769963366996,4.07777334,102.44,102.39,23.40222268]
[1769963367186,4.07777334,102.44,102.39,47.81866959]
[1769963367391,22.99356988,102.44,102.39,47.81866959]
[1769963368012,4.07777334,102.44,102.39,47.81866959]
[1769963368598,9.1539015,102.43,102.39,14.24832118]
[1769963368795,22.99382765,102.44,102.39,14.24832118]
[1769963369817,4.07777334,102.44,102.39,38.66476809]
[1769963370019,4.07777334,102.44,102.39,47.81866959]
[1769963370315,22.9935097,102.44,102.39,47.81866959]
[1769963370514,13.23167484,102.44,102.39,47.81866959]
[1769963370909,4.07777334,102.44,102.39,47.81866959]
[1769963373399,13.83979468,102.44,102.39,47.81866959]
[1769963373596,13.23167484,102.4,102.34,4.48190185]
[1769963373804,9.1539015,102.41,102.38,9.7670516]
[1769963374004,13.23167484,102.42,102.38,9.7670516]
[1769963374514,13.23167484,102.42,102.39,9.76656905]
[1769963375023,13.23167484,102.42,102.38,34.18554386]
[1769963375520,22.99568504,102.42,102.38,9.76753272]
[1769963376027,13.23167484,102.44,102.39,4.48190185]
[1769963376909,13.23167484,102.44,102.38,43.34026602]
[1769963376910,13.23167484,102.43,102.38,38.66826637]
[1769963377221,9.1539015,102.41,102.38,9.76753272]
[1769963377610,9.1539015,102.41,102.37,9.76814415]
[1769963377811,13.60682241,102.4,102.36,9.7690266]
[1769963378015,13.60682241,102.4,102.37,9.76815277]
[1769963378829,13.60682241,102.4,102.38,9.76752146]
[1769963379133,13.60682241,102.4,102.36,34.19257508]
[1769963380328,4.45292091,102.39,102.36,9.76944118]
[1769963380906,4.45292091,102.39,102.36,34.19304414]
[1769963381306,13.60682241,102.39,102.34,28.68746292]
[1769963381517,13.60682241,102.39,102.35,9.77016622]
[1769963381820,4.45292091,102.39,102.35,9.77016622]
[1769963382024,13.60682241,102.39,102.35,9.77016622]
[1769963382222,9.1539015,102.38,102.35,9.77016622]
[1769963383332,13.60682241,102.37,102.34,9.77122237]
[1769963383539,4.45292091,102.35,102.32,0.1]
[1769963383712,9.1539015,102.36,102.34,9.7713504]
[1769963383910,4.45292091,102.37,102.34,9.7713504]
[1769963384421,4.45292091,102.37,102.33,34.20272977]
[1769963384719,4.45292091,102.37,102.33,38.33344848]
[1769963384920,9.1539015,102.4,102.35,4.13071871]
[1769963385130,9.1539015,102.4,102.35,13.28462021]
[1769963385131,13.55691708,102.4,102.35,13.28462021]
[1769963385719,4.40301558,102.39,102.35,4.13071871]
[1769963385919,13.55691708,102.39,102.35,4.13071871]
[1769963386533,13.55691708,102.39,102.36,9.76944118]
[1769963387636,9.1539015,102.4,102.36,9.76944118]
[1769963387817,9.1539015,102.4,102.36,13.90015989]
[1769963388017,9.1539015,102.4,102.36,38.32376285]
[1769963388218,23.32174476,102.41,102.36,38.32376285]
[1769963388518,14.16621787,102.43,102.38,13.89825143]
[1769963388833,9.1539015,102.42,102.38,38.31708323]
[1769963389133,13.55691708,102.42,102.38,38.31708323]
[1769963389520,9.1539015,102.42,102.38,9.76753272]
[1769963389722,4.40301558,102.4,102.37,9.7682166]
[1769963390626,4.40301558,102.4,102.37,34.18943375]
[1769963391429,13.55691708,102.42,102.37,38.32015246]
[1769963391730,4.40301558,102.42,102.37,34.18943375]
[1769963392039,13.55691708,102.42,102.38,4.13071871]
[1769963393119,13.55691708,102.42,102.39,9.76657876]
[1769963393923,9.1539015,102.42,102.39,13.89729747]
[1769963395539,23.32012017,102.43,102.39,13.89729747]
[1769963395738,13.55691708,102.42,102.38,9.76746607]
[1769963395918,9.1539015,102.41,102.38,9.76746607]
[1769963396117,9.1539015,102.41,102.37,28.55193586]
[1769963396118,13.55691708,102.41,102.37,13.89874747]
[1769963396319,13.55691708,102.4,102.37,9.76802876]
[1769963396616,13.55691708,102.4,102.36,13.89967072]
[1769963396811,9.1539015,102.42,102.36,67.77005944]
[1769963397018,13.6539015,102.42,102.36,92.1936624]
[1769963397329,13.6539015,102.42,102.36,43.34645647]
[1769963397528,4.5,102.41,102.36,43.34645647]
[1769963398140,13.6539015,102.41,102.36,34.19255497]
[1769963398740,13.6539015,102.41,102.36,43.34645647]
[1769963400242,23.41873048,102.41,102.36,34.19255497]
[1769963400542,4.5,102.4,102.36,34.19255497]
[1769963400757,4.5,102.38,102.35,9.76997558]
[1769963400948,4.5,102.43,102.37,9.1539015]
[1769963401243,32.21435218,102.46,102.4,9.1539015]
[1769963401244,4.5,102.44,102.4,9.1539015]
[1769963401453,4.5,102.44,102.39,9.1539015]
[1769963402017,9.1539015,102.43,102.37,9.1539015]
[1769963402242,13.6539015,102.44,102.39,43.33692717]
[1769963402426,18.75236823,102.48,102.43,9.1539015]
[1769963402626,4.5,102.48,102.44,9.1539015]
[1769963402933,9.3539015,102.62,102.5,4.27527085]
[1769963403139,9.1539015,102.61,102.55,9.1539015]
[1769963403353,9.1539015,102.61,102.56,9.1539015]
[1769963403516,9.1539015,102.58,102.5,31.39527085]
[1769963403719,9.1539015,102.55,102.45,27.12]
[1769963403943,9.1539015,102.54,102.48,9.1539015]
[1769963404244,27.12,102.6,102.52,9.7541943]
[1769963404416,9.1539015,102.57,102.52,18.9080958]
[1769963404618,9.94487307,102.62,102.56,9.1539015]
[1769963404941,4.5,102.59,102.52,65.5349509]
[1769963405151,13.6539015,102.61,102.55,9.1539015]
[1769963405352,4.5,102.58,102.52,61.25968005]
[1769963405640,9.1539015,102.59,102.54,9.1539015]
[1769963405641,13.6539015,102.59,102.54,9.1539015]
[1769963405844,9.1539015,102.58,102.52,18.9080958]
[1769963406027,4.5,102.55,102.52,9.7541943]
[1769963406224,4.5,102.56,102.52,9.7541943]
[1769963406432,13.6539015,102.56,102.51,9.754836]
[1769963406737,4.5,102.56,102.52,9.1539015]
[1769963406939,4.5,102.58,102.53,9.1539015]
[1769963407124,4.5,102.57,102.52,9.1539015]
[1769963407636,4.5,102.57,102.51,34.14270059]
[1769963407835,4.5,102.61,102.54,9.1539015]
[1769963408135,4.5,102.6,102.55,9.1539015]
[1769963408326,4.5,102.6,102.51,14.03010685]
[1769963408327,4.7,102.62,102.58,9.74848898]
[1769963408744,4.7,102.62,102.58,18.90239048]
[1769963409239,13.6539015,102.6,102.54,9.1539015]
[1769963409460,13.6539015,102.6,102.55,9.75117525]
[1769963410124,9.94481769,102.62,102.55,9.75117525]
[1769963410125,4.5,102.59,102.57,9.74918469]
[1769963410345,23.39990423,102.61,102.56,9.75013453]
[1769963410547,4.5,102.58,102.54,9.1539015]
[1769963410855,13.6539015,102.6,102.55,9.75132074]
[1769963411141,4.5,102.58,102.54,9.75196595]
[1769963411949,9.1539015,102.58,102.54,9.75196595]
[1769963412151,4.5,102.55,102.48,27.1]
[1769963412332,9.1539015,102.56,102.49,9.75704946]
[1769963412333,4.5,102.53,102.49,9.75704946]
[1769963412537,4.5,102.53,102.48,9.1539015]